fUSD/lending_fUSD_20240122
["ID","MTS","AMOUNT","RATE_DAILY","PERIOD"]
[312480471,1705918241723,-500.0,0.0003726,2]
[312480472,1705918241732,-667.73,0.0003726,2]
[312480473,1705918241740,-500.0,0.0003726,2]
[312480474,1705918241749,-500.0,0.0003726,2]
[312480475,1705918241758,-500.0,0.0003726,2]
[312480476,1705918241767,-830.15,0.0003726,2]
[312480477,1705918241776,-830.43,0.0003726,2]
[312480478,1705918241785,-500.0,0.0003726,2]
[312480479,1705918241794,-500.0,0.0003726,2]
[312480480,1705918241803,-500.0,0.0003726,2]
[312480481,1705918241814,-500.0,0.0003726,2]
[312480482,1705918241823,-867.72,0.0003726,2]
[312480483,1705918241832,-1220.78,0.0003726,2]
[312480484,1705918241841,-500.0,0.0003726,2]
[312480485,1705918241850,-500.0,0.0003726,2]
[312480486,1705918241859,-500.0,0.0003726,2]
[312480487,1705918241867,-584.85,0.0003726,2]
[312480488,1705918241876,-500.0,0.0003726,2]
[312480489,1705918241885,-1671.85,0.0003726,2]
[312480490,1705918241894,-500.0,0.0003726,2]
[312480491,1705918241903,-500.0,0.0003726,2]
[312480492,1705918241912,-1362.28,0.0003726,2]
[312480493,1705918241921,-1397.82,0.0003726,2]
[312480494,1705918241929,-520.63,0.0003726,2]
[312480495,1705918241938,-500.0,0.0003726,2]
[312480496,1705918241947,-500.0,0.0003726,2]
[312480497,1705918241956,-506.92023411,0.0003726,2]
[312480498,1705918241965,-943.49,0.0003726,2]
[312480499,1705918241974,-500.0,0.0003726,2]
[312480500,1705918241983,-500.0,0.0003726,2]
[312480501,1705918241991,-500.0,0.0003726,2]
[312480502,1705918242000,-500.0,0.0003726,2]
[312480503,1705918242009,-901.65,0.0003726,2]
[312480504,1705918242019,-1199.04,0.0003726,2]
[312480505,1705918242027,-519.21,0.0003726,2]
[312480506,1705918242036,-1189.19,0.0003726,2]
[312480507,1705918242046,-500.0,0.0003726,2]
[312480508,1705918242056,-500.0,0.0003726,2]
[312480509,1705918242067,-1124.18,0.0003726,2]
[312480510,1705918242076,-500.0,0.0003726,2]
[312480511,1705918242084,-500.0,0.0003726,2]
[312480512,1705918242093,-500.0,0.0003726,2]
[312480513,1705918242102,-500.0,0.0003726,2]
[312480514,1705918242111,-414.44162209,0.0003726,2]
[312480515,1705918242120,-344.45728337,0.0003726,2]
[312480516,1705918242131,-511.02284619,0.0003726,2]
[312480517,1705918242140,-504.83262459,0.0003726,2]
[312480518,1705918242149,-500.0,0.0003726,2]
[312480519,1705918242158,-500.0,0.0003726,2]
[312480520,1705918242170,-790.44,0.0003726,2]
[312480521,1705918242179,-500.0,0.0003726,2]
[312480522,1705918242187,-770.12,0.0003726,2]
[312480523,1705918242196,-510.35184788,0.0003726,2]
[312480524,1705918242207,-500.0,0.0003726,2]
[312480525,1705918242215,-500.0,0.0003726,2]
[312480526,1705918242224,-737.99,0.0003726,2]
[312480527,1705918242233,-500.0,0.0003726,2]
[312480528,1705918242242,-500.0,0.0003726,2]
[312480529,1705918242252,-500.0,0.0003726,2]
[312480530,1705918242261,-917.61,0.0003726,2]
[312480531,1705918242270,-500.0,0.0003726,2]
[312480532,1705918242279,-500.0,0.0003726,2]
[312480533,1705918242287,-500.0,0.0003726,2]
[312480534,1705918242296,-893.8,0.0003726,2]
[312480535,1705918242306,-1389.11,0.0003726,2]
[312480536,1705918242315,-3412.07,0.0003726,2]
[312480537,1705918242323,-500.0,0.0003726,2]
[312480538,1705918242332,-617.72,0.0003726,2]
[312480539,1705918242341,-500.0,0.0003726,2]
[312480540,1705918242350,-500.0,0.0003726,2]
[312480541,1705918242359,-202.40359932,0.0003726,2]
[312480542,1705918242367,-500.0,0.0003726,2]
[312480543,1705918242376,-500.0,0.0003726,2]
[312480544,1705918242385,-500.0,0.0003726,2]
[312480545,1705918242393,-500.0,0.0003726,2]
[312480546,1705918242402,-1308.79,0.0003726,2]
[312480547,1705918242411,-500.0,0.0003726,2]
[312480548,1705918242420,-500.0,0.0003726,2]
[312480549,1705918242429,-500.0,0.0003726,2]
[312480550,1705918242438,-1347.19,0.0003726,2]
[312480551,1705918242447,-527.69195211,0.0003726,2]
[312480552,1705918242455,-500.0,0.0003726,2]
[312480553,1705918242464,-786.81,0.0003726,2]
[312480555,1705918242473,-600.54414008,0.0003726,2]
[312480556,1705918242482,-500.0,0.0003726,2]
[312480558,1705918242491,-500.0,0.0003726,2]
[312480559,1705918242500,-500.0,0.0003726,2]
[312480560,1705918242509,-500.0,0.0003726,2]
[312480561,1705918242517,-500.0,0.0003726,2]
[312480563,1705918242526,-1000.0,0.0003726,7]
[312480565,1705918242535,-1012.64,0.0003726,2]
[312480567,1705918242544,-500.0,0.0003726,2]
[312480569,1705918242553,-720.42,0.0003726,2]
[312480570,1705918242564,-500.0,0.0003726,2]
[312480571,1705918242573,-567.79,0.0003726,2]
[312480572,1705918242582,-500.0,0.0003726,2]
[312480573,1705918242591,-500.0,0.0003726,2]
[312480574,1705918242600,-606.64492223,0.0003726,2]
[312480575,1705918242609,-500.0,0.0003726,2]
[312480576,1705918242618,-500.0,0.0003726,2]
[312480577,1705918242626,-500.0,0.0003726,2]
[312480578,1705918242635,-949.7,0.0003726,2]
[312480579,1705918242644,-502.76,0.0003726,2]
[312480580,1705918242653,-500.0,0.0003726,2]
[312480581,1705918242662,-1112.27,0.0003726,2]
[312480582,1705918242672,-500.0,0.0003726,2]
[312480583,1705918242681,-505.96285274,0.0003726,2]
[312480584,1705918242690,-500.0,0.0003726,2]
[312480585,1705918242699,-500.0,0.0003726,2]
[312480586,1705918242709,-731.8,0.0003726,2]
[312480587,1705918242718,-500.0,0.0003726,2]
[312480588,1705918242727,-500.0,0.0003726,2]
[312480589,1705918242737,-500.0,0.0003726,2]
[312480590,1705918242747,-735.06,0.0003726,2]
[312480591,1705918242756,-500.0,0.0003726,2]
[312480592,1705918242767,-500.0,0.0003726,2]
[312480593,1705918242778,-505.82914874,0.0003726,2]
[312480594,1705918242792,-500.0,0.0003726,2]
[312480595,1705918242801,-940.87,0.0003726,2]
[312480596,1705918242813,-588.49,0.0003726,2]
[312480597,1705918242823,-500.0,0.0003726,2]
[312480598,1705918242832,-500.0,0.0003726,2]
[312480599,1705918242841,-500.0,0.0003726,2]
[312480600,1705918242850,-500.0,0.0003726,2]
[312480601,1705918242858,-669.76,0.0003726,2]
[312480602,1705918242867,-1014.77,0.0003726,2]
[312480603,1705918242876,-1016.17,0.0003726,2]
[312480604,1705918242885,-500.0,0.0003726,2]
[312480605,1705918242894,-500.0,0.0003726,2]
[312480606,1705918242903,-500.0,0.0003726,2]
[312480607,1705918242912,-500.0,0.0003726,2]
[312480608,1705918242920,-500.0,0.0003726,2]
[312480609,1705918242929,-500.0,0.0003726,2]
[312480610,1705918242938,-1094.54,0.0003726,2]
[312480611,1705918242948,-500.0,0.0003726,2]
[312480612,1705918242957,-500.0,0.0003726,2]
[312480613,1705918242966,-765.53,0.0003726,2]
[312480614,1705918242975,-500.0,0.0003726,2]
[312480615,1705918242984,-500.0,0.0003726,2]
[312480616,1705918242992,-755.49,0.0003726,2]
[312480617,1705918243001,-515.53093742,0.0003726,2]
[312480618,1705918243010,-500.0,0.0003726,2]
[312480619,1705918243019,-509.44002575,0.0003726,2]
[312480620,1705918243029,-500.0,0.0003726,2]
[312480621,1705918243037,-1242.6,0.0003726,2]
[312480622,1705918243046,-500.0,0.0003726,2]
[312480623,1705918243057,-500.0,0.0003726,2]
[312480624,1705918243066,-500.0,0.0003726,2]
[312480625,1705918243075,-1460.56,0.0003726,2]
[312480626,1705918243084,-1075.62,0.0003726,2]
[312480627,1705918243093,-500.0,0.0003726,2]
[312480628,1705918243101,-847.87,0.0003726,2]
[312480629,1705918243110,-500.0,0.0003726,2]
[312480630,1705918243119,-500.0,0.0003726,2]
[312480631,1705918243129,-500.0,0.0003726,2]
[312480632,1705918243139,-1147.5,0.0003726,2]
[312480633,1705918243152,-500.0,0.0003726,2]
[312480634,1705918243161,-500.0,0.0003726,2]
[312480635,1705918243170,-500.0,0.0003726,2]
[312480636,1705918243179,-609.57628191,0.0003726,2]
[312480637,1705918243190,-500.0,0.0003726,2]
[312480638,1705918243198,-500.0,0.0003726,2]
[312480639,1705918243208,-1144.52,0.0003726,2]
[312480640,1705918243217,-625.39,0.0003726,2]
[312480641,1705918243226,-500.0,0.0003726,2]
[312480642,1705918243235,-500.0,0.0003726,2]
[312480644,1705918243245,-944.14,0.0003726,2]
[312480646,1705918243254,-1352.26,0.0003726,2]
[312480648,1705918243264,-500.0,0.0003726,2]
[312480650,1705918243273,-500.0,0.0003726,2]
[312480664,1705918243281,-637.5,0.0003726,2]
[312480667,1705918243500,-1055.65,0.0003726,2]
[312480668,1705918243509,-500.0,0.0003726,2]
[312480669,1705918243518,-706.31,0.0003726,2]
[312480670,1705918243528,-500.0,0.0003726,2]
[312480671,1705918243537,-1254.91,0.0003726,2]
[312480672,1705918243546,-500.0,0.0003726,2]
[312480673,1705918243555,-500.0,0.0003726,2]
[312480674,1705918243566,-500.0,0.0003726,2]
[312480675,1705918243576,-500.0,0.0003726,2]
[312480676,1705918243585,-502.63546249,0.0003726,2]
[312480677,1705918243594,-637.22,0.0003726,2]
[312480678,1705918243603,-1198.86,0.0003726,2]
[312480679,1705918243612,-500.0,0.0003726,2]
[312480680,1705918243622,-866.95,0.0003726,2]
[312480681,1705918243631,-500.0,0.0003726,2]
[312480682,1705918243640,-971.33,0.0003726,2]
[312480683,1705918243649,-500.0,0.0003726,2]
[312480684,1705918243658,-500.0,0.0003726,2]
[312480685,1705918243667,-500.0,0.0003726,2]
[312480686,1705918243675,-500.0,0.0003726,2]
[312480687,1705918243684,-500.0,0.0003726,2]
[312480688,1705918243693,-379.45489863,0.0003726,2]
[312480689,1705918243702,-1231.07,0.0003726,2]
[312480690,1705918243711,-500.0,0.0003726,2]
[312480691,1705918243720,-1273.36,0.0003726,2]
[312480692,1705918243729,-559.99052378,0.0003726,2]
[312480693,1705918243738,-500.0,0.0003726,2]
[312480694,1705918243747,-500.0,0.0003726,2]
[312480695,1705918243756,-500.0,0.0003726,2]
[312480696,1705918243765,-506.24502901,0.0003726,2]
[312480697,1705918243774,-749.58,0.0003726,2]
[312480699,1705918243783,-500.0,0.0003726,2]
[312480701,1705918243791,-500.0,0.0003726,2]
[312480703,1705918243800,-523.21588842,0.0003726,2]
[312480704,1705918243809,-500.0,0.0003726,2]
[312480706,1705918243817,-500.0,0.0003726,2]
[312480707,1705918243826,-500.0,0.0003726,2]
[312480708,1705918243835,-500.0,0.0003726,2]
[312480710,1705918243844,-836.65,0.0003726,2]
[312480712,1705918243853,-883.12,0.0003726,2]
[312480714,1705918243862,-500.0,0.0003726,2]
[312480716,1705918243870,-500.0,0.0003726,2]
[312480718,1705918243879,-500.0,0.0003726,2]
[312480720,1705918243888,-500.0,0.0003726,2]
[312480722,1705918243896,-500.0,0.0003726,2]
[312480724,1705918243905,-500.0,0.0003726,2]
[312480726,1705918243914,-500.0,0.0003726,2]
[312480728,1705918243923,-500.0,0.0003726,2]
[312480729,1705918243932,-500.0,0.0003726,2]
[312480730,1705918243940,-1195.49,0.0003726,2]
[312480731,1705918243949,-659.47,0.0003726,2]
[312480732,1705918243958,-500.0,0.0003726,2]
[312480733,1705918243967,-1000.0,0.0003726,2]
[312480734,1705918243976,-284.31102981,0.0003726,2]
[312480735,1705918243986,-1110.8,0.0003726,2]
[312480736,1705918243995,-1238.4,0.0003726,2]
[312480737,1705918244005,-861.13,0.0003726,2]
[312480738,1705918244014,-500.0,0.0003726,2]
[312480739,1705918244024,-708.04,0.0003726,2]
[312480740,1705918244033,-500.0,0.0003726,2]
[312480741,1705918244043,-500.0,0.0003726,2]
[312480742,1705918244052,-500.0,0.0003726,2]
[312480743,1705918244062,-500.0,0.0003726,2]
[312480744,1705918244071,-500.0,0.0003726,2]
[312480745,1705918244080,-223.48480854,0.0003726,2]
[312480746,1705918244090,-587.30650673,0.0003726,2]
[312480747,1705918244099,-500.0,0.0003726,2]
[312480748,1705918244108,-1149.79,0.0003726,2]
[312480749,1705918244117,-588.93,0.0003726,2]
[312480750,1705918244126,-500.0,0.0003726,2]
[312480751,1705918244135,-500.0,0.0003726,2]
[312480752,1705918244144,-500.0,0.0003726,2]
[312480753,1705918244154,-500.0,0.0003726,2]
[312480754,1705918244165,-500.0,0.0003726,2]
[312480755,1705918244174,-501.28255503,0.0003726,2]
[312480756,1705918244183,-796.2,0.0003726,2]
[312480757,1705918244192,-500.0,0.0003726,2]
[312480758,1705918244202,-500.0,0.0003726,2]
[312480759,1705918244211,-500.0,0.0003726,2]
[312480760,1705918244220,-500.0,0.0003726,2]
[312480761,1705918244228,-500.0,0.0003726,2]
[312480762,1705918244238,-555.19285298,0.0003726,2]
[312480763,1705918244247,-552.61,0.0003726,2]
[312480764,1705918244256,-964.33,0.0003726,2]
[312480765,1705918244266,-1215.53,0.0003726,2]
[312480766,1705918244275,-500.0,0.0003726,2]
[312480767,1705918244284,-548.38680621,0.0003726,2]
[312480768,1705918244293,-500.0,0.0003726,2]
[312480769,1705918244302,-635.01,0.0003726,2]
[312480770,1705918244313,-512.00982987,0.0003726,2]
[312480771,1705918244323,-500.0,0.0003726,2]
[312480772,1705918244332,-1073.78,0.0003726,2]
[312480773,1705918244341,-948.47,0.0003726,2]
[312480774,1705918244351,-500.0,0.0003726,2]
[312480775,1705918244359,-500.0,0.0003726,2]
[312480776,1705918244368,-500.0,0.0003726,2]
[312480777,1705918244377,-500.0,0.0003726,2]
[312480778,1705918244387,-500.0,0.0003726,2]
[312480779,1705918244396,-500.0,0.0003726,2]
[312480780,1705918244404,-554.04,0.0003726,2]
[312480781,1705918244413,-500.0,0.0003726,2]
[312480782,1705918244422,-1244.86,0.0003726,2]
[312480783,1705918244431,-1350.12,0.0003726,2]
[312480784,1705918244441,-500.0,0.0003726,2]
[312480785,1705918244450,-669.08,0.0003726,2]
[312480786,1705918244458,-500.0,0.0003726,2]
[312480787,1705918244468,-500.0,0.0003726,2]
[312480788,1705918244476,-1304.07,0.0003726,2]
[312480789,1705918244485,-500.0,0.0003726,2]
[312480790,1705918244494,-500.0,0.0003726,2]
[312480791,1705918244503,-500.0,0.0003726,2]
[312480792,1705918244511,-696.53,0.0003726,2]
[312480793,1705918244520,-500.0,0.0003726,2]
[312480794,1705918244529,-500.0,0.0003726,2]
[312480795,1705918244538,-1072.7,0.0003726,2]
[312480796,1705918244547,-853.51,0.0003726,2]
[312480797,1705918244555,-723.01,0.0003726,2]
[312480798,1705918244566,-500.0,0.0003726,2]
[312480799,1705918244575,-500.0,0.0003726,2]
[312480800,1705918244584,-500.0,0.0003726,2]
[312480801,1705918244593,-1562.01,0.0003726,2]
[312480802,1705918244602,-500.0,0.0003726,2]
[312480803,1705918244611,-825.72,0.0003726,2]
[312480804,1705918244620,-500.0,0.0003726,2]
[312480805,1705918244629,-500.0,0.0003726,2]
[312480806,1705918244638,-500.0,0.0003726,2]
[312480807,1705918244647,-859.46,0.0003726,2]
[312480808,1705918244656,-620.28,0.0003726,2]
[312480809,1705918244665,-500.0,0.0003726,2]
[312480810,1705918244675,-1728.52,0.0003726,2]
[312480811,1705918244684,-1389.62,0.0003726,2]
[312480812,1705918244693,-628.53,0.0003726,2]
[312480813,1705918244702,-500.0,0.0003726,2]
[312480814,1705918244710,-500.0,0.0003726,2]
[312480815,1705918244719,-606.36,0.0003726,2]
[312480816,1705918244728,-500.0,0.0003726,2]
[312480817,1705918244737,-500.0,0.0003726,2]
[312480818,1705918244746,-500.0,0.0003726,2]
[312480819,1705918244755,-500.0,0.0003726,2]
[312480820,1705918244764,-768.11,0.0003726,2]
[312480821,1705918244773,-500.0,0.0003726,2]
[312480822,1705918244783,-500.0,0.0003726,2]
[312480823,1705918244791,-500.0,0.0003726,2]
[312480824,1705918244801,-500.0,0.0003726,2]
[312480825,1705918244810,-500.0,0.0003726,2]
[312480826,1705918244819,-500.0,0.0003726,2]
[312480827,1705918244829,-581.94,0.0003726,2]
[312480828,1705918244838,-500.0,0.0003726,2]
[312480829,1705918244847,-500.0,0.0003726,2]
[312480830,1705918244856,-504.21238893,0.0003726,2]
[312480831,1705918244866,-843.22,0.0003726,2]
[312480832,1705918244875,-500.0,0.0003726,2]
[312480833,1705918244884,-501.21202324,0.0003726,2]
[312480834,1705918244893,-500.0,0.0003726,2]
[312480835,1705918244902,-500.0,0.0003726,2]
[312480836,1705918244911,-657.71,0.0003726,2]
[312480837,1705918244920,-792.67,0.0003726,2]
[312480838,1705918244928,-935.75,0.0003726,2]
[312480839,1705918244937,-500.0,0.0003726,2]
[312480840,1705918244946,-500.0,0.0003726,2]
[312480841,1705918244955,-500.0,0.0003726,2]
[312480842,1705918244964,-516.9083941,0.0003726,2]
[312480843,1705918244973,-500.0,0.0003726,2]
[312480844,1705918244982,-706.96,0.0003726,2]
[312480845,1705918244991,-500.0,0.0003726,2]
[312480846,1705918244999,-907.47,0.0003726,2]
[312480847,1705918245008,-500.0,0.0003726,2]
[312480848,1705918245017,-649.23,0.0003726,2]
[312480849,1705918245026,-500.0,0.0003726,2]
[312480850,1705918245036,-500.0,0.0003726,2]
[312480851,1705918245045,-500.0,0.0003726,2]
[312480852,1705918245054,-791.73,0.0003726,2]
[312480853,1705918245064,-1079.9,0.0003726,2]
[312480854,1705918245073,-500.0,0.0003726,2]
[312480855,1705918245082,-500.0,0.0003726,7]
[312480856,1705918245091,-500.0,0.0003726,2]
[312480857,1705918245100,-936.76,0.0003726,2]
[312480858,1705918245109,-606.39,0.0003726,2]
[312480859,1705918245118,-500.0,0.0003726,2]
[312480860,1705918245127,-500.0,0.0003726,2]
[312480861,1705918245137,-500.0,0.0003726,2]
[312480862,1705918245149,-1480.34,0.0003726,2]
[312480863,1705918245158,-500.0,0.0003726,2]
[312480864,1705918245167,-604.88,0.0003726,2]
[312480865,1705918245176,-500.0,0.0003726,2]
[312480866,1705918245185,-1799.37,0.0003726,2]
[312480867,1705918245194,-771.57,0.0003726,2]
[312480868,1705918245203,-500.0,0.0003726,2]
[312480869,1705918245211,-500.0,0.0003726,2]
[312480870,1705918245221,-1171.18,0.0003726,2]
[312480871,1705918245230,-500.0,0.0003726,2]
[312480872,1705918245239,-500.0,0.0003726,2]
[312480873,1705918245249,-509.92501422,0.0003726,2]
[312480874,1705918245258,-500.0,0.0003726,2]
[312480875,1705918245268,-500.0,0.0003726,2]
[312480876,1705918245278,-508.85679404,0.0003726,2]
[312480877,1705918245286,-1022.18,0.0003726,2]
[312480878,1705918245295,-500.0,0.0003726,2]
[312480879,1705918245304,-500.0,0.0003726,2]
[312480880,1705918245314,-500.0,0.0003726,2]
[312480881,1705918245323,-500.0,0.0003726,2]
[312480882,1705918245332,-544.83,0.0003726,2]
[312480883,1705918245341,-1142.44,0.0003726,2]
[312480884,1705918245350,-500.0,0.0003726,2]
[312480885,1705918245358,-239.8671225,0.0003726,2]
[312480886,1705918245367,-1321.66,0.0003726,2]
[312480887,1705918245376,-300.0,0.0003726,2]
[312480888,1705918245385,-500.0,0.0003726,2]
[312480889,1705918245394,-500.0,0.0003726,2]
[312480890,1705918245402,-522.42886909,0.0003726,2]
[312480891,1705918245412,-500.0,0.0003726,2]
[312480892,1705918245420,-229.88903608,0.0003726,2]
[312480893,1705918245429,-500.0,0.0003726,2]
[312480894,1705918245438,-500.0,0.0003726,2]
[312480895,1705918245447,-500.0,0.0003726,2]
[312480896,1705918245455,-500.0,0.0003726,2]
[312480897,1705918245464,-500.0,0.0003726,2]
[312480898,1705918245473,-1157.25,0.0003726,2]
[312480899,1705918245482,-1203.51,0.0003726,2]
[312480900,1705918245491,-500.0,0.0003726,2]
[312480901,1705918245500,-609.96,0.0003726,2]
[312480902,1705918245509,-500.0,0.0003726,2]
[312480903,1705918245518,-1163.1,0.0003726,2]
[312480904,1705918245526,-648.293849,0.0003726,2]
[312480906,1705918245535,-500.0,0.0003726,2]
[312480907,1705918245544,-500.0,0.0003726,2]
[312480908,1705918245553,-537.54,0.0003726,2]
[312480909,1705918245562,-500.0,0.0003726,2]
[312480910,1705918245570,-500.0,0.0003726,2]
[312480911,1705918245579,-500.0,0.0003726,2]
[312480912,1705918245588,-785.26,0.0003726,2]
[312480913,1705918245597,-501.15768466,0.0003726,2]
[312480914,1705918245606,-500.0,0.0003726,2]
[312480915,1705918245615,-910.02,0.0003726,2]
[312480916,1705918245624,-806.63,0.0003726,2]
[312480917,1705918245710,-500.0,0.0003726,2]
[312480918,1705918245720,-518.4,0.0003726,2]
[312480919,1705918245728,-500.0,0.0003726,2]
[312480920,1705918245739,-500.0,0.0003726,2]
[312480921,1705918245748,-703.31,0.0003726,2]
[312480922,1705918245757,-547.33,0.0003726,2]
[312480923,1705918245766,-500.0,0.0003726,2]
[312480924,1705918245776,-500.0,0.0003726,2]
[312480925,1705918245784,-995.14,0.0003726,2]
[312480926,1705918245793,-500.0,0.0003726,2]
[312480927,1705918245802,-500.0,0.0003726,2]
[312480928,1705918245812,-500.0,0.0003726,2]
[312480929,1705918245821,-574.27718152,0.0003726,2]
[312480930,1705918245829,-893.8,0.0003726,2]
[312480931,1705918245838,-500.0,0.0003726,2]
[312480932,1705918245847,-500.0,0.0003726,2]
[312480934,1705918245856,-1448.05,0.0003726,2]
[312480936,1705918245865,-500.0,0.0003726,2]
[312480938,1705918245873,-500.0,0.0003726,2]
[312480940,1705918245882,-212.38240187,0.0003726,2]
[312480941,1705918245890,-500.0,0.0003726,2]
[312480943,1705918245899,-243.03200822,0.0003726,2]
[312480944,1705918245908,-708.49,0.0003726,2]
[312480946,1705918245919,-500.0,0.0003726,2]
[312480947,1705918245927,-500.0,0.0003726,2]
[312480949,1705918245936,-1621.79,0.0003726,2]
[312480951,1705918245945,-500.0,0.0003726,2]
[312480953,1705918245954,-837.06,0.0003726,2]
[312480954,1705918245963,-500.0,0.0003726,2]
[312480956,1705918245972,-701.27,0.0003726,2]
[312480958,1705918245980,-500.0,0.0003726,2]
[312480959,1705918245989,-1554.29,0.0003726,2]
[312480961,1705918245998,-500.0,0.0003726,2]
[312480962,1705918246006,-504.10952098,0.0003726,2]
[312480964,1705918246016,-500.0,0.0003726,2]
[312480966,1705918246025,-1188.02,0.0003726,2]
[312480968,1705918246034,-500.0,0.0003726,2]
[312480969,1705918246043,-500.0,0.0003726,2]
[312480971,1705918246052,-500.0,0.0003726,2]
[312480973,1705918246062,-500.0,0.0003726,2]
[312480974,1705918246070,-500.0,0.0003726,2]
[312480975,1705918246079,-500.0,0.0003726,2]
[312480976,1705918246088,-593.99962412,0.0003726,2]
[312480977,1705918246096,-559.99848436,0.0003726,2]
[312480978,1705918246105,-500.0,0.0003726,2]
[312480980,1705918246114,-688.44,0.0003726,2]
[312480982,1705918246122,-500.0,0.0003726,2]
[312480984,1705918246131,-500.0,0.0003726,2]
[312480986,1705918246143,-786.07,0.0003726,2]
[312480988,1705918246152,-582.84,0.0003726,2]
[312480989,1705918246161,-500.0,0.0003726,2]
[312480990,1705918246170,-500.0,0.0003726,2]
[312480992,1705918246179,-976.88,0.0003726,2]
[312480994,1705918246187,-500.0,0.0003726,2]
[312480996,1705918246196,-500.0,0.0003726,2]
[312480998,1705918246206,-777.33,0.0003726,2]
[312481000,1705918246214,-500.0,0.0003726,2]
[312481002,1705918246223,-546.19255227,0.0003726,2]
[312481004,1705918246231,-500.0,0.0003726,2]
[312481006,1705918246242,-500.0,0.0003726,2]
[312481008,1705918246251,-500.0,0.0003726,2]
[312481010,1705918246259,-500.0,0.0003726,2]
[312481012,1705918246268,-500.0,0.0003726,2]
[312481014,1705918246277,-500.0,0.0003726,2]
[312481016,1705918246285,-500.0,0.0003726,2]
[312481018,1705918246294,-524.46776591,0.0003726,2]
[312481020,1705918246302,-1379.54,0.0003726,2]
[312481022,1705918246312,-500.0,0.0003726,2]
[312481024,1705918246320,-1050.57,0.0003726,2]
[312481026,1705918246329,-574.12,0.0003726,2]
[312481028,1705918246337,-500.0,0.0003726,2]
[312481030,1705918246346,-500.0,0.0003726,2]
[312481032,1705918246354,-500.0,0.0003726,2]
[312481034,1705918246363,-1527.13,0.0003726,2]
[312481036,1705918246372,-500.0,0.0003726,2]
[312481038,1705918246380,-500.0,0.0003726,2]
[312481040,1705918246389,-500.0,0.0003726,2]
[312481042,1705918246397,-500.0,0.0003726,2]
[312481044,1705918246406,-590.23,0.0003726,2]
[312481046,1705918246414,-684.11,0.0003726,2]
[312481048,1705918246423,-500.0,0.0003726,2]
[312481050,1705918246431,-864.97,0.0003726,2]
[312481052,1705918246439,-500.0,0.0003726,2]
[312481054,1705918246448,-500.0,0.0003726,2]
[312481056,1705918246457,-500.0,0.0003726,2]
[312481057,1705918246465,-500.0,0.0003726,2]
[312481058,1705918246474,-502.01553391,0.0003726,2]
[312481059,1705918246483,-2940.41,0.0003726,2]
[312481060,1705918246491,-2940.41,0.0003726,2]
[312481061,1705918246500,-2940.41,0.0003726,2]
[312481062,1705918246509,-2940.41,0.0003726,2]
[312481063,1705918246517,-1388.16,0.0003726,2]
[312481064,1705918246526,-500.0,0.0003726,2]
[312481065,1705918246535,-590.14,0.0003726,2]